[Event "Slovakia Open 2022"]
[Site "Bratislava"]
[Date "2022.10.01"]
[Round "5.23"]
[White "Nemsak, Denis"]
[Black "Pasti, Zsombor"]
[Result "1-0"]
[ECO "A29"]
[WhiteElo "2012"]
[BlackElo "1884"]
[Annotator "TA"]
[PlyCount "77"]
[EventDate "2022.09.30"]
[EventCountry "SVK"]
[SourceTitle "playchess.com"]
[Source "ChessBase"]
[SourceQuality "1"]
[TimeControl "2700+10"]

{[%evp 16,77,40,50,82,89,261,274,252,143,137,128,420,421,416,415,416,404,406,411,448,428,495,511,497,469,488,459,464,394,469,469,501,504,531,456,571,570,593,451,597,586,556,539,1087,1084,888,752,708,666,29976,29977,29975,29977,29989,29988,29992,29993,29993,29990,29991,29988,29988,29985]} 1. c4 {[%emt 0:02:13]} e5 {[%emt 0:00:16]} 2. Nc3 {[%emt 0:00:02]} Nf6 {[%emt 0:00:02]} 3. g3 {[%emt 0:00:02]} d5 {[%emt 0:00:04]} 4. cxd5 {[%emt 0:00:02]} Nxd5 {[%emt 0:00:03]} 5. Bg2 {[%emt 0:00:02]} Be6 {[%emt 0:00:02]} 6. Nf3 {[%emt 0:00:04]} Nc6 {[%emt 0:00:04]} 7. O-O {[%emt 0:00:03]} Be7 {[%emt 0:00:02]} 8. d4 {[%emt 0:00:02]} exd4 {[%emt 0:00:08] The main line 8...exd4 scores better than 8...Nxc3.} 9. Nxd4 {[%emt 0:00:05] And now Bxd5 would win.} (9. Nb5 {seems wilder.} Qd7 10. Nbxd4 Nxd4 11. Nxd4 c6 12. e4) 9... Nxd4 {[%emt 0:00:32] A29: English Opening: Four Knights Variation with 4 g3.} 10. Bxd5 {[%emt 0:06:22]} Nxe2+ {[%emt 0:03:56]} (10... c6 $16 {might work better.}) 11. Qxe2 $18 {[%emt 0:00:03]} Bxd5 {[%emt 0:00:03] White has a decisive advantage.} 12. Nxd5 {[%emt 0:00:03]} ({Less strong is} 12. Rd1 c6 $16) ({White should try} 12. Qe5 $18 Bf3 13. Qxg7) 12... Qxd5 $16 {[%emt 0:00:08]} 13. Re1 {[%emt 0:05:06][%csl Ge1][%cal Re2e7] [#]} Qd7 $146 {[%emt 0:03:39][%mdl 8192] This move loses the game for Black.} (13... Qe6 $16) ({Predecessor:} 13... Qe6 14. Qxe6 fxe6 15. Rxe6 Kf7 16. Re2 Rhe8 {0-1 (16) Yamato,S-Rosek,H DESC email 2000}) 14. Bg5 $1 $18 {[%emt 0:01:23][%cal Rg5e7]} O-O {[%emt 0:03:43]} 15. Qxe7 {[%emt 0:00:13]} Qb5 {[%emt 0:00:21]} 16. Bf4 {[%emt 0:03:19][%cal Bg5f4,Bf4e5,Be5c3][%mdl 32]} Qxb2 {[%emt 0:01:29]} 17. Qxc7 {[%emt 0:00:57]} Rac8 {[%emt 0:00:08]} 18. Qa5 {[%emt 0:00:08]} b6 {[%emt 0:08:33]} 19. Qxa7 {[%emt 0:01:05]} Ra8 {[%emt 0:00:17]} 20. Qe7 {[%emt 0:00:25]} h6 {[%emt 0:00:53]} 21. Be5 {[%emt 0:02:13]} Qc2 {[%emt 0:00:36]} 22. Qc7 {[%emt 0:01:10]} Qd2 {[%emt 0:01:26]} 23. Bc3 {[%emt 0:01:02]} Qc2 {[%emt 0:00:26]} 24. Qe5 {[%emt 0:01:02][%csl Gc3][%cal Re5g7]} Qg6 {[%emt 0:00:10]} 25. Qe4 {[%emt 0:05:27]} Qg5 {[%emt 0:02:01]} 26. h4 {[%emt 0:00:46][%cal Bh2h4,Bh4h5][%mdl 32]} Qh5 {[%emt 0:00:23]} 27. Qe5 {[%emt 0:00:40][%csl Gc3][%cal Re5g7]} Qg4 {[%emt 0:00:24]} 28. Re4 {[%emt 0:00:40][%cal Be1e4,Be4g4,Bg4g6,Bg6g7][%mdl 32]} Qg6 {[%emt 0:00:04]} 29. h5 {[%emt 0:01:05]} Qh7 {[%emt 0:00:03]} 30. Rg4 {[%emt 0:00:10][%cal Rg4g7]} f6 {[%emt 0:00:03]} 31. Qe6+ {[%emt 0:00:22]} Kh8 {[%emt 0:00:03]} 32. Re1 {[%emt 0:01:42][%cal Ba1e1,Be1e6,Be6f6][%mdl 32]} Qc2 {[%emt 0:01:07] [#]} 33. Qe7 $1 {[%emt 0:01:09][%csl Gg4][%cal Re7g7] White mates.} Qh7 {[%emt 0:03:26]} 34. Re6 {[%emt 0:04:03]} Rac8 {[%emt 0:04:49]} 35. Rg6 {[%emt 0:01:58]} b5 {[%emt 0:03:18] [#]} 36. Rexf6 $1 {[%emt 0:01:14]} Rg8 {[%emt 0:02:14]} 37. Rf3 {[%emt 0:03:36]} Rce8 {[%emt 0:00:32]} 38. Bxg7+ {[%emt 0:00:43]} Qxg7 {[%emt 0:00:12]} 39. Rxg7 {[%emt 0:00:02] Weighted Error Value: White=0.29 (precise) /Black=0.63} 1-0

[Event "Slovakia Open 2022"]
[Site "Bratislava"]
[Date "2022.10.01"]
[Round "5.24"]
[White "Djubek, Boris"]
[Black "Matejka, Simon"]
[Result "1-0"]
[ECO "D37"]
[WhiteElo "1995"]
[BlackElo "1422"]
[Annotator "TA"]
[PlyCount "94"]
[EventDate "2022.09.30"]
[EventCountry "SVK"]
[SourceTitle "playchess.com"]
[Source "ChessBase"]
[SourceQuality "1"]
[TimeControl "2700+10"]

{[%evp 12,94,40,12,22,8,23,-16,37,20,29,19,30,14,36,12,29,0,0,-50,-37,-39,0,-170,-45,-59,-30,-196,-164,-169,-147,-312,-143,-141,25,0,0,0,227,222,218,212,357,349,355,358,353,327,831,825,825,815,788,791,776,762,748,743,838,827,1162,1116,1502,1472,1625,1248,1070,0,1597,1480,1890,1809,3729,2693,3681,5343,12832,9618,29987,12839,12840,12840,12841,12841,29994]} 1. d4 {[%emt 0:00:41]} d5 {[%emt 0:00:33]} 2. c4 {[%emt 0:00:04]} e6 {[%emt 0:00:03]} 3. Nc3 {[%emt 0:00:08]} Nf6 {[%emt 0:00:03]} 4. Nf3 {[%emt 0:00:27]} Be7 {[%emt 0:00:19]} 5. Bf4 {[%emt 0:00:10]} O-O {[%emt 0:00:09]} 6. e3 {[%emt 0:00:06]} c6 {[%emt 0:00:11]} 7. a3 {[%emt 0:01:38]} Nbd7 {[%emt 0:00:41] D37: Queen's Gambit Declined: 5 Bf4.} 8. cxd5 {[%emt 0:00:43]} (8. Qc2 {seems wilder.} Nh5 9. Be5 b6 10. Bd3) 8... exd5 {[%emt 0:00:39]} 9. Bd3 {[%emt 0:00:11]} b5 {[%emt 0:01:17]} (9... Nh5 $11) 10. h3 {[%emt 0:00:45]} a6 {[%emt 0:00:25] [#]} 11. O-O $146 {[%emt 0:03:03]} ({Predecessor:} 11. Bh2 Re8 12. O-O Nf8 13. Qc2 Bd6 14. Rac1 Bxh2+ 15. Nxh2 Kh8 16. Ne2 Qe7 17. Ng3 Ng6 18. Nf3 Bd7 19. Bf5 Qd8 20. Bxg6 fxg6 21. Ng5 {½-½ (21) Rahmani,B (1722)-Yussof,P (2062) Amman 2014}) 11... c5 {[%emt 0:00:49]} 12. Ne5 {[%emt 0:00:52]} Bb7 {[%emt 0:01:54] Prevents Nc6.} 13. Bf5 {[%emt 0:03:39]} Re8 {[%emt 0:01:33]} 14. Rc1 {[%emt 0:01:33]} c4 {[%emt 0:01:09]} 15. g4 {[%emt 0:03:01]} (15. Qf3 $11) 15... Nxe5 {[%emt 0:00:59]} 16. dxe5 {[%emt 0:01:32]} Ne4 {[%emt 0:00:27]} (16... Nd7 $5 {[%cal Rd7c5]}) 17. e6 $2 {[%emt 0:01:13] [#]} (17. Nxe4 $1 $11 dxe4 18. Bd7) 17... fxe6 {[%emt 0:01:26]} (17... Nxc3 $1 $19 18. exf7+ (18. Rxc3 $2 g6 $19) 18... Kxf7 19. bxc3 (19. Rxc3 $2 g6 $19) 19... g6) 18. Bxe6+ $15 {[%emt 0:01:21]} Kh8 {[%emt 0:00:12]} 19. Bf5 $2 {[%emt 0:06:46]} ({Don't go for} 19. Nxd5 $2 Bd6 20. Bf5 Ng5 21. Bxg5 Qxg5 $17) (19. Nxe4 $1 $11 dxe4 20. Qd7) 19... Nxc3 {[%emt 0:01:03]} 20. Rxc3 {[%emt 0:00:55]} Bf6 {[%emt 0:00:44] Against Be5. ...g6 is the strong threat.} 21. Bb1 {[%emt 0:05:14]} (21. g5 $17 Bxg5 22. Qh5) 21... Bxc3 {[%emt 0:02:11]} (21... d4 $19 {has better winning chances.} 22. exd4 Bxd4) 22. bxc3 $17 {[%emt 0:00:09]} g5 $2 {[%emt 0:02:11]} ({Black should play} 22... Qe7 $17 23. a4 Kg8 24. axb5 axb5) 23. Qc2 {[%emt 0:01:08][%csl Gb1][%cal Rc2h7]} Qd7 {[%emt 0:01:26]} 24. Bxg5 {[%emt 0:00:23]} Re4 $2 {[%emt 0:01:24] [#] White now steadily converts the win.} (24... Kg8 $11 {and Black stays safe.}) 25. f3 $1 $18 {[%emt 0:02:14][%mdl 1024] White has strong compensation.} Re6 {[%emt 0:01:11]} 26. Qf5 {[%emt 0:01:41] Hoping for Bf6+.} Rc8 {[%emt 0:03:15]} (26... Kg8 $142) 27. Bf6+ {[%emt 0:00:49]} Kg8 {[%emt 0:00:17]} 28. Qg5+ {[%emt 0:00:29]} (28. Bg7 Qxg7 29. Qxe6+ Kh8 $16) 28... Kf8 {[%emt 0:00:46]} 29. Bf5 {[%emt 0:01:06] aiming for Qh6+. Dancing on a razor blade.} Qd6 $2 {[%emt 0:05:21]} (29... Rc7 30. f4 Qf7) 30. Qg7+ {[%emt 0:02:24]} Ke8 {[%emt 0:00:28]} 31. Qg8+ {[%emt 0:00:17][%mdl 64] Pin} ({Worse is} 31. Qxb7 Qg3+ 32. Kh1 Qxh3+ 33. Kg1 Qg3+ 34. Kh1 Qh3+ 35. Kg1 Qg3+ 36. Kh1 Qh3+ $11) 31... Kd7 {[%emt 0:00:15]} 32. Qf7+ {[%emt 0:00:09][%mdl 64] Pin, Deflection} (32. Qxe6+ Qxe6 33. Bxe6+ Kxe6 $18) 32... Kc6 {[%emt 0:00:31]} 33. Qxe6 {[%emt 0:00:46]} ({Weaker is} 33. Bxe6 Qg3+ 34. Kh1 Qxh3+ 35. Kg1 Qg3+ 36. Kh1 Qh3+ 37. Kg1 Qg3+ 38. Kh1 Qh3+ $11) 33... Qxe6 {[%emt 0:00:21]} 34. Bxe6 {[%emt 0:00:02] This bishop pair is nice.} Re8 {[%emt 0:00:04]} 35. Bf5 {[%emt 0:00:25]} Rxe3 {[%emt 0:00:09]} 36. Bxh7 {[%emt 0:00:21]} Kc7 {[%emt 0:00:08]} 37. Bd4 {[%emt 0:01:37]} Re2 {[%emt 0:00:06]} 38. Rf2 {[%emt 0:00:18]} Re1+ {[%emt 0:00:03]} 39. Rf1 {[%emt 0:00:16]} Re2 {[%emt 0:00:04]} 40. Bb1 {[%emt 0:00:19]} a5 {[%emt 0:00:09]} 41. h4 {[%emt 0:00:13]} Rd2 {[%emt 0:00:09]} 42. h5 {[%emt 0:00:13] And now h6 would win.} b4 {[%emt 0:00:11]} 43. axb4 {[%emt 0:00:19]} axb4 {[%emt 0:00:04]} 44. h6 {[%emt 0:00:08] Threatening mate with h7.} bxc3 {[%emt 0:00:12]} 45. Bxc3 {[%emt 0:00:11]} (45. Be5+ $142 Kb6 46. h7 c2 47. h8=Q d4 48. Qh6+ Ka5 49. Qxd2+ Kb5 50. Bxc2) 45... Re2 {[%emt 0:00:06] White is clearly winning.} 46. h7 {[%emt 0:00:07]} Re8 {[%emt 0:00:36]} 47. h8=Q {[%emt 0:00:04]} Re2 {[%emt 0:00:08] Weighted Error Value: White=0.58/Black=0.64} 1-0

[Event "Slovakia Open 2022"]
[Site "Bratislava"]
[Date "2022.10.01"]
[Round "5.25"]
[White "Krajnak, Robert"]
[Black "Csontos, Aron"]
[Result "1-0"]
[ECO "A13"]
[WhiteElo "1931"]
[BlackElo "1962"]
[Annotator "TA"]
[PlyCount "113"]
[EventDate "2022.09.30"]
[EventCountry "SVK"]
[SourceTitle "playchess.com"]
[Source "ChessBase"]
[SourceQuality "1"]
[TimeControl "2700+10"]

{[%evp 9,113,9,14,0,31,-3,-6,-4,1,-3,-3,-29,34,22,22,29,30,16,19,18,155,129,120,133,123,135,169,139,164,143,143,140,170,162,177,167,174,162,156,138,297,302,396,389,385,378,351,334,528,502,506,265,547,512,463,201,1035,1041,1030,1031,1020,999,1006,992,918,781,1437,1075,995,0,1308,777,1152,1125,1468,1533,1891,1768,1787,0,1648,1634,1515,1537,1625,1449,29983,29984,29984,29985,29989,29990,29990,29987,29987,29988,29988,29989,29991,29992,29992,29993,29993,29994,29995,29994]} 1. c4 {[%emt 0:07:22]} e6 {[%emt 0:00:03]} 2. g3 {[%emt 0:00:17]} d5 {[%emt 0:00:04]} 3. Bg2 {[%emt 0:00:04]} d4 {[%emt 0:00:23]} 4. e3 {[%emt 0:00:11]} c5 {[%emt 0:00:29]} 5. exd4 {[%emt 0:01:12]} cxd4 {[%emt 0:00:08]} 6. d3 {[%emt 0:00:10] A13: English Opening: 1...e6.} Nf6 {[%emt 0:01:09] [#]} 7. Ne2 $146 {[%emt 0:01:05]} ({Predecessor:} 7. Nf3 Nc6 8. O-O Bd6 9. a3 a5 10. Bg5 h6 11. Bxf6 Qxf6 12. Nbd2 Qe7 13. Ne4 Bc7 14. b4 axb4 15. axb4 Rxa1 16. Qxa1 {½-½ (34) Liu,Y (2530)-Zhao,J (2619) Fuling 2022}) 7... Nc6 {[%emt 0:01:14]} 8. O-O {[%emt 0:00:13] The position is equal.} Bc5 {[%emt 0:01:06]} 9. Na3 {[%emt 0:01:20]} O-O {[%emt 0:01:01]} 10. Rb1 {[%emt 0:00:41]} Bxa3 {[%emt 0:02:04]} (10... Re8 $11) 11. bxa3 $14 {[%emt 0:00:40]} Qd6 {[%emt 0:02:06]} 12. a4 {[%emt 0:02:36]} Nd7 {[%emt 0:02:20]} 13. Rb3 {[%emt 0:02:22]} Nc5 {[%emt 0:00:33][%csl LRa4,LRb3]} 14. Ba3 {[%emt 0:00:11] Threatening Bxc6.} e5 {[%emt 0:00:45]} (14... b6 $1 $11) 15. Rb5 $36 {[%emt 0:01:07][%mdl 2048] White is on the roll.} b6 {[%emt 0:00:14] [#]} 16. Nc1 $1 {[%emt 0:00:13]} Ba6 {[%emt 0:01:04]} 17. Nb3 {[%emt 0:02:09]} Bxb5 {[%emt 0:00:20]} 18. axb5 {[%emt 0:00:02]} Ne7 {[%emt 0:00:36]} 19. Bxa8 {[%emt 0:01:03]} Rxa8 {[%emt 0:00:04]} 20. Bxc5 {[%emt 0:00:04]} bxc5 {[%emt 0:00:02]} 21. a4 {[%emt 0:00:16][%cal Ba2a4,Ba4a5][%mdl 32]} Rc8 {[%emt 0:12:30]} 22. Qf3 {[%emt 0:01:45]} f6 {[%emt 0:07:19]} 23. a5 {[%emt 0:01:21]} Kf7 {[%emt 0:02:22]} 24. Rb1 {[%emt 0:09:06] White is more active.} Ke8 $2 {[%emt 0:03:02]} (24... Qc7 $16) 25. Qh5+ $18 {[%emt 0:02:16]} Ng6 {[%emt 0:00:16]} 26. Qxh7 {[%emt 0:00:07]} Kf7 {[%emt 0:00:08] Threatens to win with ...Rh8.} 27. Qh5 {[%emt 0:00:52]} Rh8 {[%emt 0:00:14]} 28. Qf3 {[%emt 0:00:14]} Qe6 {[%emt 0:04:12]} (28... Rb8 {was necessary.} 29. Nd2 Nf8) 29. Nd2 {[%emt 0:02:11]} Qh3 {[%emt 0:00:24]} 30. Qg2 {[%emt 0:00:02]} Qg4 $2 {[%emt 0:00:22]} (30... Qxg2+ {was called for.} 31. Kxg2 Nf8) 31. Ne4 {[%emt 0:00:36]} f5 {[%emt 0:01:50]} 32. Nxc5 {[%emt 0:00:38]} (32. f3 $142 Qh5 33. Nxc5) 32... f4 $2 {[%emt 0:00:40]} (32... e4) 33. Qd5+ {[%emt 0:01:27]} Ke7 {[%emt 0:00:16]} 34. Qb7+ {[%emt 0:00:08]} Kf8 {[%emt 0:00:28]} 35. Qa8+ {[%emt 0:03:41]} Kf7 {[%emt 0:00:09]} 36. Qxa7+ {[%emt 0:00:06]} Ne7 {[%emt 0:00:11]} 37. Qd7 {[%emt 0:00:50]} Qf3 {[%emt 0:00:50]} 38. Qe6+ {[%emt 0:00:39]} Ke8 {[%emt 0:00:15]} 39. Qd7+ {[%emt 0:01:28]} Kf7 {[%emt 0:00:07]} 40. Qb7 {[%emt 0:00:34]} Qh5 {[%emt 0:00:11]} 41. h4 {[%emt 0:00:09]} g5 {[%emt 0:00:09]} 42. Qd7 {[%emt 0:00:13]} gxh4 {[%emt 0:00:06]} 43. Qe6+ {[%emt 0:00:05]} Ke8 {[%emt 0:00:05]} 44. Qd7+ {[%emt 0:00:18]} Kf7 $1 {[%emt 0:00:06]} 45. g4 {[%emt 0:00:06]} Qg6 {[%emt 0:00:26]} 46. f3 {[%emt 0:00:05]} h3 {[%emt 0:00:02]} 47. Kh2 {[%emt 0:00:13]} Qh7 {[%emt 0:00:14]} 48. Qe6+ {[%emt 0:00:08] White mates.} Ke8 {[%emt 0:00:02]} 49. Ne4 {[%emt 0:00:03]} Qh4 {[%emt 0:00:06]} 50. b6 {[%emt 0:00:10]} Rh6 {[%emt 0:00:12] [#]} 51. Qxh6 $3 {[%emt 0:00:34][%mdl 512]} Qxh6 {[%emt 0:00:02]} 52. b7 {[%emt 0:00:03]} Nc6 {[%emt 0:00:02]} 53. a6 {[%emt 0:00:06]} Qe6 {[%emt 0:00:22]} 54. a7 {[%emt 0:00:08][%mdl 64] Deflection, Decoy, Promotion} Nxa7 {[%emt 0:00:03]} 55. b8=Q+ {[%emt 0:00:03]} Nc8 {[%emt 0:00:02]} 56. Rb7 {[%emt 0:00:20]} Qc6 {[%emt 0:00:13]} 57. Rh7 {[%emt 0:00:12] Weighted Error Value: White=0.32/Black=0.50} 1-0

[Event "Slovakia Open 2022"]
[Site "Bratislava"]
[Date "2022.10.01"]
[Round "5.26"]
[White "Prochazka, Peter"]
[Black "Babula, Matej"]
[Result "0-1"]
[ECO "B21"]
[WhiteElo "1792"]
[BlackElo "1864"]
[Annotator "NA RC COMBH"]
[PlyCount "38"]
[EventDate "2022.09.30"]
[EventCountry "SVK"]
[SourceTitle "playchess.com"]
[Source "ChessBase"]
[SourceQuality "1"]
[TimeControl "2700+10"]

1. e4 {[%emt 0:00:02]} c5 {[%emt 0:00:02]} 2. d4 {[%emt 0:00:01]} cxd4 {[%emt 0:00:05]} 3. c3 {[%emt 0:00:11]} dxc3 {[%emt 0:00:04]} 4. Nxc3 {[%emt 0:00:00]} Nc6 {[%emt 0:00:27]} 5. Nf3 {[%emt 0:01:30]} d6 {[%emt 0:02:49]} 6. Bc4 {[%emt 0:00:28]} Nf6 {[%emt 0:00:17]} 7. O-O {[%emt 0:01:14]} e6 {[%emt 0:01:04]} 8. Qe2 {[%emt 0:02:43]} Be7 {[%emt 0:00:56]} 9. Rd1 {[%emt 0:00:29]} e5 {[%emt 0:03:54]} 10. h3 {[%emt 0:05:53]} O-O {[%emt 0:00:43]} 11. Be3 {[%emt 0:01:38]} a6 {[%emt 0:02:28]} 12. Rac1 {[%emt 0:00:31]} b5 {[%emt 0:01:56]} 13. Bd5 {[%emt 0:01:30]} Nxd5 {[%emt 0:02:18]} 14. Nxd5 {[%emt 0:00:31]} Bb7 {[%emt 0:00:50]} 15. Bb6 {[%emt 0:00:23]} Qd7 {[%emt 0:00:25]} 16. Rxc6 {[%emt 0:01:08]} Bxc6 {[%emt 0:00:53]} 17. Nxe5 {[%emt 0:00:02]} dxe5 {[%emt 0:02:45]} 18. Nf6+ {[%emt 0:02:58]} Bxf6 {[%emt 0:00:02]} 19. Rxd7 {[%emt 0:00:03]} Bxd7 {[%emt 0:00:01]} 0-1

[Event "Slovakia Open 2022"]
[Site "Bratislava"]
[Date "2022.10.01"]
[Round "5.27"]
[White "Benci, Jozef"]
[Black "Rosol, Philip"]
[Result "1/2-1/2"]
[ECO "A11"]
[WhiteElo "1873"]
[BlackElo "1885"]
[Annotator "NA RC COMBH"]
[PlyCount "90"]
[EventDate "2022.09.30"]
[EventCountry "SVK"]
[SourceTitle "playchess.com"]
[Source "ChessBase"]
[SourceQuality "1"]
[TimeControl "2700+10"]

1. Nf3 {[%emt 0:00:06]} Nf6 {[%emt 0:00:03]} 2. g3 {[%emt 0:00:03]} d5 {[%emt 0:00:25]} 3. c4 {[%emt 0:00:43]} c6 {[%emt 0:00:27]} 4. b3 {[%emt 0:00:57]} g6 {[%emt 0:03:26]} 5. Bb2 {[%emt 0:00:30]} Bg7 {[%emt 0:00:06]} 6. Bg2 {[%emt 0:00:25]} O-O {[%emt 0:00:58]} 7. O-O {[%emt 0:00:04]} Bf5 {[%emt 0:00:15]} 8. d3 {[%emt 0:02:31]} Nbd7 {[%emt 0:01:31]} 9. Nbd2 {[%emt 0:00:37]} Re8 {[%emt 0:03:59]} 10. Nh4 {[%emt 0:01:17]} Be6 {[%emt 0:01:41]} 11. Qc2 {[%emt 0:03:19]} Qb6 {[%emt 0:02:54]} 12. Nhf3 {[%emt 0:02:09]} Bg4 {[%emt 0:05:55]} 13. h3 {[%emt 0:00:51]} Bxf3 {[%emt 0:00:21]} 14. Nxf3 {[%emt 0:00:06]} e5 {[%emt 0:02:04]} 15. e3 {[%emt 0:00:55]} Rad8 {[%emt 0:01:18]} 16. Rad1 {[%emt 0:00:29]} h6 {[%emt 0:02:25]} 17. d4 {[%emt 0:00:34]} e4 {[%emt 0:01:32]} 18. Nd2 {[%emt 0:01:44]} Rc8 {[%emt 0:02:34]} 19. Nb1 {[%emt 0:00:36]} h5 {[%emt 0:00:49]} 20. h4 {[%emt 0:00:12]} Bh6 {[%emt 0:01:19]} 21. Qe2 {[%emt 0:00:36]} Qa6 {[%emt 0:00:57]} 22. Nc3 {[%emt 0:00:51]} Bf8 {[%emt 0:01:50]} 23. cxd5 {[%emt 0:02:32]} Qxe2 {[%emt 0:00:16]} 24. Nxe2 {[%emt 0:00:02]} Nxd5 {[%emt 0:00:34]} 25. a3 {[%emt 0:00:54]} f5 {[%emt 0:00:16]} 26. Rc1 {[%emt 0:00:48]} Kf7 {[%emt 0:00:52]} 27. Nc3 {[%emt 0:00:40]} Nxc3 {[%emt 0:00:29]} 28. Rxc3 {[%emt 0:00:04]} Nf6 {[%emt 0:00:18]} 29. Rfc1 {[%emt 0:00:23]} Nd5 {[%emt 0:00:12]} 30. R3c2 {[%emt 0:00:19]} Be7 {[%emt 0:00:39]} 31. Bf1 {[%emt 0:00:09]} Ke6 {[%emt 0:00:42]} 32. Bc4 {[%emt 0:00:26]} Kd7 {[%emt 0:00:24]} 33. Kf1 {[%emt 0:02:49]} Bd6 {[%emt 0:01:24]} 34. Ke2 {[%emt 0:00:18]} b5 {[%emt 0:00:28]} 35. Bxd5 {[%emt 0:00:18]} cxd5 {[%emt 0:00:02]} 36. Kd2 {[%emt 0:01:23]} a5 {[%emt 0:00:46]} 37. Rxc8 {[%emt 0:00:58]} Rxc8 {[%emt 0:00:01]} 38. Rxc8 {[%emt 0:00:03]} Kxc8 {[%emt 0:00:01]} 39. a4 {[%emt 0:01:19]} b4 {[%emt 0:00:32]} 40. Ke2 {[%emt 0:00:32]} Kd7 {[%emt 0:00:11]} 41. Kf1 {[%emt 0:01:11]} Ke6 {[%emt 0:00:37]} 42. Kg2 {[%emt 0:00:46]} Kf6 {[%emt 0:01:45]} 43. Kh3 {[%emt 0:00:16]} Bf8 {[%emt 0:00:51]} 44. Bc1 {[%emt 0:00:27]} Bh6 {[%emt 0:00:40]} 45. Bd2 {[%emt 0:00:58]} Bf8 {[%emt 0:00:13]} 1/2-1/2

[Event "Slovakia Open 2022"]
[Site "Bratislava"]
[Date "2022.10.01"]
[Round "5.28"]
[White "Durovka, Stefan"]
[Black "Dolnik, Michal"]
[Result "0-1"]
[ECO "A35"]
[WhiteElo "1783"]
[BlackElo "1485"]
[Annotator "NA RC COMBH"]
[PlyCount "68"]
[EventDate "2022.09.30"]
[EventCountry "SVK"]
[SourceTitle "playchess.com"]
[Source "ChessBase"]
[SourceQuality "1"]
[TimeControl "2700+10"]

1. Nf3 {[%emt 0:00:11]} Nf6 {[%emt 0:00:04]} 2. c4 {[%emt 0:00:04]} c5 {[%emt 0:00:06]} 3. Nc3 {[%emt 0:00:03]} Nc6 {[%emt 0:00:02]} 4. d4 {[%emt 0:00:02]} cxd4 {[%emt 0:00:07]} 5. Nxd4 {[%emt 0:00:10]} g6 {[%emt 0:00:15]} 6. e3 {[%emt 0:00:00]} Bg7 {[%emt 0:00:04]} 7. g3 {[%emt 0:00:03]} b6 {[%emt 0:00:25]} 8. Bg2 {[%emt 0:00:02]} Bb7 {[%emt 0:00:02]} 9. Nxc6 {[%emt 0:00:06]} Bxc6 {[%emt 0:00:05]} 10. Bxc6 {[%emt 0:00:02]} dxc6 {[%emt 0:00:03]} 11. O-O {[%emt 0:00:12]} Qc8 {[%emt 0:00:06]} 12. Qa4 {[%emt 0:00:25]} O-O {[%emt 0:00:10]} 13. b4 {[%emt 0:00:03]} Qh3 {[%emt 0:00:03]} 14. f3 {[%emt 0:01:55]} Rad8 {[%emt 0:00:33]} 15. Qc2 {[%emt 0:01:58]} Qe6 {[%emt 0:00:13]} 16. Ne2 {[%emt 0:00:44]} Ng4 {[%emt 0:00:38]} 17. Nd4 {[%emt 0:00:43]} Rxd4 {[%emt 0:00:20]} 18. fxg4 {[%emt 0:00:25]} Rxc4 {[%emt 0:00:04]} 19. Qb1 {[%emt 0:00:16]} Bxa1 {[%emt 0:00:12]} 20. Qxa1 {[%emt 0:00:01]} Rc2 {[%emt 0:00:15]} 21. Qd4 {[%emt 0:05:26]} Qxa2 {[%emt 0:01:16]} 22. Qe4 {[%emt 0:00:32]} Qc4 {[%emt 0:00:36]} 23. Qxc4 {[%emt 0:01:39]} Rxc4 {[%emt 0:00:05]} 24. Ba3 {[%emt 0:00:25]} Rd8 {[%emt 0:00:04]} 25. b5 {[%emt 0:00:04]} cxb5 {[%emt 0:00:10]} 26. Bxe7 {[%emt 0:00:03]} Rd2 {[%emt 0:00:04]} 27. Bf6 {[%emt 0:00:32]} Rcc2 {[%emt 0:00:11]} 28. Ra1 {[%emt 0:01:28]} b4 {[%emt 0:00:06]} 29. h4 {[%emt 0:00:14]} b3 {[%emt 0:00:04]} 30. h5 {[%emt 0:00:23]} b2 {[%emt 0:00:03]} 31. Bxb2 {[%emt 0:00:27]} Rxb2 {[%emt 0:00:05]} 32. h6 {[%emt 0:00:26]} a5 {[%emt 0:00:03]} 33. Kf1 {[%emt 0:00:05]} a4 {[%emt 0:00:05]} 34. Ke1 {[%emt 0:00:11]} Rh2 {[%emt 0:00:03]} 0-1

[Event "Slovakia Open 2022"]
[Site "Bratislava"]
[Date "2022.10.01"]
[Round "5.29"]
[White "Pekar, Matus"]
[Black "Rehacek, Jan"]
[Result "1-0"]
[ECO "D00"]
[WhiteElo "1679"]
[BlackElo "1342"]
[Annotator "NA RC COMBH"]
[PlyCount "47"]
[EventDate "2022.09.30"]
[EventCountry "SVK"]
[SourceTitle "playchess.com"]
[Source "ChessBase"]
[SourceQuality "1"]
[TimeControl "2700+10"]

1. d4 {[%emt 0:00:31]} d5 {[%emt 0:00:05]} 2. Nc3 {[%emt 0:00:12]} Bf5 {[%emt 0:00:16]} 3. Bf4 {[%emt 0:00:33]} c6 {[%emt 0:00:42]} 4. Qd2 {[%emt 0:02:33]} Nf6 {[%emt 0:00:19]} 5. h3 {[%emt 0:00:53]} e6 {[%emt 0:01:19]} 6. O-O-O {[%emt 0:01:54]} Bd6 {[%emt 0:01:11]} 7. Nf3 {[%emt 0:01:23]} Ne4 {[%emt 0:01:25]} 8. Nxe4 {[%emt 0:00:26]} Bxe4 {[%emt 0:00:54]} 9. Ne5 {[%emt 0:05:26]} Bxe5 {[%emt 0:04:23]} 10. Bxe5 {[%emt 0:03:40]} Rg8 {[%emt 0:02:10]} 11. h4 {[%emt 0:00:52]} Nd7 {[%emt 0:01:21]} 12. f3 {[%emt 0:00:42]} Nxe5 {[%emt 0:02:19]} 13. dxe5 {[%emt 0:00:30]} Bg6 {[%emt 0:02:15]} 14. h5 {[%emt 0:00:12]} Bxc2 {[%emt 0:00:59]} 15. Qxc2 {[%emt 0:00:14]} Qg5+ {[%emt 0:00:14]} 16. Kb1 {[%emt 0:00:40]} Qxe5 {[%emt 0:00:05]} 17. Qc5 {[%emt 0:00:51]} Kd7 {[%emt 0:04:03]} 18. e4 {[%emt 0:00:51]} h6 {[%emt 0:02:09]} 19. Bd3 {[%emt 0:04:18]} b6 {[%emt 0:00:56]} 20. Qb4 {[%emt 0:00:34]} Rgb8 {[%emt 0:02:46]} 21. Rhe1 {[%emt 0:00:24]} Qc7 {[%emt 0:02:15]} 22. exd5 {[%emt 0:00:10]} cxd5 {[%emt 0:01:08]} 23. Bb5+ {[%emt 0:00:12]} Kd8 {[%emt 0:00:29]} 24. Qf8# {[%emt 0:00:09]} 1-0